[Event "Titled Tuesday Blitz October 31 Late 2023"]
[White "Yelisieiev, Yevhenii"]
[Black "Javakhadze, Zurab"]
[WhiteFideId "14139642"]
[BlackFideId "13603647"]
[WhiteElo "2624"]
[BlackElo "2780"]
[Result "0-1"]
[Round "6"]
[TimeControl "180+1"]
[Date "2023.10.31"]
[WhiteClock "0:00:08"]
[BlackClock "0:00:07"]
[Board "31"]

1. d4 {[%clk 0:02:59]}  Nf6 {[%clk 0:02:59]} 2. Nf3 {[%clk 0:02:57]}  e6 {[%clk 0:03:00]} 3. c4 {[%clk 0:02:57]}  b6 {[%clk 0:03:00]} 4. a3 {[%clk 0:02:54]}  Bb7 {[%clk 0:02:51]} 5. Nc3 {[%clk 0:02:54]}  d5 {[%clk 0:02:51]} 6. Bg5 {[%clk 0:02:54]}  Be7 {[%clk 0:02:50]} 7. e3 {[%clk 0:02:54]}  Nbd7 {[%clk 0:02:48]} 8. Qc2 {[%clk 0:02:51]}  O-O {[%clk 0:02:46]} 9. cxd5 {[%clk 0:02:51]}  exd5 {[%clk 0:02:45]} 10. Bd3 {[%clk 0:02:47]}  h6 {[%clk 0:02:43]} 11. Bf4 {[%clk 0:02:44]}  a6 {[%clk 0:02:42]} 12. h3 {[%clk 0:02:42]}  c5 {[%clk 0:02:42]} 13. O-O {[%clk 0:02:42]}  c4 {[%clk 0:02:16]} 14. Bf5 {[%clk 0:02:37]}  b5 {[%clk 0:02:17]} 15. Ne5 {[%clk 0:02:35]}  Nb6 {[%clk 0:02:13]} 16. Qe2 {[%clk 0:02:33]}  Nc8 {[%clk 0:02:10]} 17. Rad1 {[%clk 0:02:28]}  Nd6 {[%clk 0:02:10]} 18. Bb1 {[%clk 0:02:28]}  a5 {[%clk 0:02:07]} 19. Qc2 {[%clk 0:02:19]}  b4 {[%clk 0:01:36]} 20. Na4 {[%clk 0:02:18]}  Rc8 {[%clk 0:01:24]} 21. Nc5 {[%clk 0:02:17]}  Ba8 {[%clk 0:01:22]} 22. Ng4 {[%clk 0:02:15]}  Nfe4 {[%clk 0:01:00]} 23. Nxe4 {[%clk 0:02:08]}  dxe4 {[%clk 0:00:58]} 24. Qe2 {[%clk 0:02:05]}  Bd5 {[%clk 0:00:48]} 25. Nxh6+ {[%clk 0:01:58]}  gxh6 {[%clk 0:00:44]} 26. Bxh6 {[%clk 0:01:56]}  f5 {[%clk 0:00:39]} 27. Bxf8 {[%clk 0:01:53]}  Qxf8 {[%clk 0:00:32]} 28. f4 {[%clk 0:01:43]}  c3 {[%clk 0:00:24]} 29. axb4 {[%clk 0:01:34]}  axb4 {[%clk 0:00:23]} 30. bxc3 {[%clk 0:01:34]}  bxc3 {[%clk 0:00:23]} 31. Ba2 {[%clk 0:01:27]}  Bxa2 {[%clk 0:00:19]} 32. Qxa2+ {[%clk 0:01:27]}  Qf7 {[%clk 0:00:20]} 33. Qa7 {[%clk 0:01:10]}  Bf8 {[%clk 0:00:16]} 34. Qa5 {[%clk 0:01:05]}  c2 {[%clk 0:00:11]} 35. Rc1 {[%clk 0:01:05]}  Qb3 {[%clk 0:00:12]} 36. Kh1 {[%clk 0:00:42]}  Qxe3 {[%clk 0:00:07]} 37. Qd5+ {[%clk 0:00:42]}  Kg7 {[%clk 0:00:05]} 38. Qe5+ {[%clk 0:00:42]}  Kf7 {[%clk 0:00:05]} 39. Qd5+ {[%clk 0:00:42]}  Ke7 {[%clk 0:00:06]} 40. Qe5+ {[%clk 0:00:38]}  Kd7 {[%clk 0:00:06]} 41. d5 {[%clk 0:00:38]}  Qc3 {[%clk 0:00:06]} 42. Qe6+ {[%clk 0:00:38]}  Kd8 {[%clk 0:00:05]} 43. Qg8 {[%clk 0:00:31]}  Qf6 {[%clk 0:00:04]} 44. Rf2 {[%clk 0:00:29]}  Qg7 {[%clk 0:00:04]} 45. Qe6 {[%clk 0:00:28]}  Qd4 {[%clk 0:00:01]} 46. Rff1 {[%clk 0:00:19]}  Rc7 {[%clk 0:00:01]} 47. Kh2 {[%clk 0:00:19]}  e3 {[%clk 0:00:02]} 48. Rfe1 {[%clk 0:00:18]}  Ne4 {[%clk 0:00:02]} 49. Qxf5 {[%clk 0:00:18]}  Bd6 {[%clk 0:00:02]} 50. Qg6 {[%clk 0:00:11]}  Bxf4+ {[%clk 0:00:03]} 51. g3 {[%clk 0:00:07]}  Bxg3+ {[%clk 0:00:03]} 52. Kg2 {[%clk 0:00:07]}  Qd2+ {[%clk 0:00:03]} 53. Kf3 {[%clk 0:00:08]}  Qf2+ {[%clk 0:00:04]} 54. Kxe4 {[%clk 0:00:08]}  Re7+ {[%clk 0:00:05]} 55. Kd3 {[%clk 0:00:08]}  Qd2+ {[%clk 0:00:05]} 56. Kc4 {[%clk 0:00:08]}  Rc7+ {[%clk 0:00:06]} 57. Kb5 {[%clk 0:00:09]}  Rb7+ {[%clk 0:00:05]} 58. Kc6 {[%clk 0:00:09]}  Rc7+ {[%clk 0:00:05]} 59. Kb5 {[%clk 0:00:08]}  Qxd5+ {[%clk 0:00:06]} 60. Kb4 {[%clk 0:00:08]}  Qc4+ {[%clk 0:00:06]} 61. Ka3 {[%clk 0:00:08]}  Ra7+ {[%clk 0:00:07]} 62. Kb2 {[%clk 0:00:08]}  Ra2# {[%clk 0:00:07]} 0-1


[Site "https://www.chess.com"]

[Event "Titled Tuesday Blitz October 31 Late 2023"]
[White "Bashirli, Nail"]
[Black "Fiorito, Francisco"]
[WhiteFideId "13406809"]
[BlackFideId "180165"]
[WhiteElo "2768"]
[BlackElo "2616"]
[Result "1-0"]
[Round "6"]
[TimeControl "180+1"]
[Date "2023.10.31"]
[WhiteClock "0:00:07"]
[BlackClock "0:00:04"]
[Board "32"]

1. e4 {[%clk 0:01:33]}  c5 {[%clk 0:02:57]} 2. Nf3 {[%clk 0:01:33]}  Nc6 {[%clk 0:02:56]} 3. Nc3 {[%clk 0:01:34]}  g6 {[%clk 0:02:56]} 4. Bc4 {[%clk 0:01:35]}  Bg7 {[%clk 0:02:55]} 5. h4 {[%clk 0:01:36]}  h6 {[%clk 0:02:54]} 6. d3 {[%clk 0:01:36]}  e6 {[%clk 0:02:55]} 7. Be3 {[%clk 0:01:36]}  d6 {[%clk 0:02:54]} 8. Qd2 {[%clk 0:01:36]}  Nge7 {[%clk 0:02:54]} 9. Bb3 {[%clk 0:01:36]}  Nd4 {[%clk 0:02:50]} 10. Bxd4 {[%clk 0:01:34]}  cxd4 {[%clk 0:02:49]} 11. Ne2 {[%clk 0:01:35]}  Nc6 {[%clk 0:02:45]} 12. h5 {[%clk 0:01:32]}  g5 {[%clk 0:02:45]} 13. c3 {[%clk 0:01:33]}  dxc3 {[%clk 0:02:45]} 14. Nxc3 {[%clk 0:01:32]}  O-O {[%clk 0:02:40]} 15. O-O-O {[%clk 0:01:29]}  b5 {[%clk 0:02:23]} 16. Kb1 {[%clk 0:01:20]}  a5 {[%clk 0:02:21]} 17. a4 {[%clk 0:01:07]}  bxa4 {[%clk 0:02:20]} 18. Bxa4 {[%clk 0:01:04]}  Nb4 {[%clk 0:02:14]} 19. d4 {[%clk 0:01:05]}  Ba6 {[%clk 0:02:13]} 20. Qe3 {[%clk 0:00:57]}  Rb8 {[%clk 0:02:03]} 21. Rd2 {[%clk 0:00:55]}  Bc4 {[%clk 0:01:49]} 22. e5 {[%clk 0:00:53]}  Nd5 {[%clk 0:01:34]} 23. Nxd5 {[%clk 0:00:50]}  Bxd5 {[%clk 0:01:34]} 24. Bc2 {[%clk 0:00:41]}  Qb6 {[%clk 0:01:29]} 25. Be4 {[%clk 0:00:40]}  Bxe4+ {[%clk 0:01:18]} 26. Qxe4 {[%clk 0:00:41]}  Rfc8 {[%clk 0:01:14]} 27. Rc1 {[%clk 0:00:37]}  a4 {[%clk 0:01:09]} 28. Rxc8+ {[%clk 0:00:34]}  Rxc8 {[%clk 0:01:09]} 29. Rc2 {[%clk 0:00:30]}  Rb8 {[%clk 0:01:01]} 30. exd6 {[%clk 0:00:21]}  Qxd6 {[%clk 0:00:55]} 31. Ne5 {[%clk 0:00:18]}  a3 {[%clk 0:00:52]} 32. Nc6 {[%clk 0:00:16]}  Rb3 {[%clk 0:00:13]} 33. Ka2 {[%clk 0:00:12]}  Rxb2+ {[%clk 0:00:10]} 34. Rxb2 {[%clk 0:00:13]}  axb2 {[%clk 0:00:11]} 35. Kxb2 {[%clk 0:00:14]}  f5 {[%clk 0:00:09]} 36. Qc2 {[%clk 0:00:14]}  Bxd4+ {[%clk 0:00:08]} 37. Kb3 {[%clk 0:00:15]}  Bg7 {[%clk 0:00:08]} 38. Qc4 {[%clk 0:00:14]}  Kh7 {[%clk 0:00:09]} 39. f3 {[%clk 0:00:12]}  e5 {[%clk 0:00:07]} 40. Nb4 {[%clk 0:00:10]}  Qe7 {[%clk 0:00:06]} 41. Nd5 {[%clk 0:00:10]}  Qb7+ {[%clk 0:00:06]} 42. Kc2 {[%clk 0:00:10]}  Qd7 {[%clk 0:00:06]} 43. Qd3 {[%clk 0:00:10]}  Qe6 {[%clk 0:00:07]} 44. Nc3 {[%clk 0:00:10]}  Qf7 {[%clk 0:00:05]} 45. g4 {[%clk 0:00:10]}  e4 {[%clk 0:00:06]} 46. fxe4 {[%clk 0:00:09]}  fxg4 {[%clk 0:00:06]} 47. e5+ {[%clk 0:00:09]}  Kg8 {[%clk 0:00:07]} 48. Qd8+ {[%clk 0:00:09]}  Bf8 {[%clk 0:00:07]} 49. Nd5 {[%clk 0:00:06]}  g3 {[%clk 0:00:06]} 50. Nf6+ {[%clk 0:00:07]}  Kh8 {[%clk 0:00:06]} 51. Qd3 {[%clk 0:00:07]}  g2 {[%clk 0:00:06]} 52. Qd4 {[%clk 0:00:07]}  Qc7+ {[%clk 0:00:04]} 53. Kd2 {[%clk 0:00:07]}  Bc5 {[%clk 0:00:04]} 54. Qd5 {[%clk 0:00:06]}  Qc8 {[%clk 0:00:02]} 55. Qxg2 {[%clk 0:00:06]}  Qd8+ {[%clk 0:00:03]} 56. Ke2 {[%clk 0:00:06]}  Bd4 {[%clk 0:00:03]} 57. Qe4 {[%clk 0:00:07]}  Qb6 {[%clk 0:00:04]} 58. Qh7# {[%clk 0:00:07]} 1-0


[Site "https://www.chess.com"]

[Event "Titled Tuesday Blitz October 31 Late 2023"]
[White "Schnaider, Ilan"]
[Black "Figorito, Nick"]
[WhiteFideId "169013"]
[BlackFideId "30923689"]
[WhiteElo "2737"]
[BlackElo "2453"]
[Result "1-0"]
[Round "6"]
[TimeControl "180+1"]
[Date "2023.10.31"]
[WhiteClock "0:00:25"]
[BlackClock "0:00:00"]
[Board "36"]

1. e4 {[%clk 0:03:00]}  e6 {[%clk 0:02:59]} 2. d4 {[%clk 0:03:00]}  d5 {[%clk 0:03:00]} 3. Nd2 {[%clk 0:03:01]}  Nf6 {[%clk 0:03:00]} 4. e5 {[%clk 0:02:59]}  Nfd7 {[%clk 0:03:01]} 5. Bd3 {[%clk 0:02:59]}  c5 {[%clk 0:03:01]} 6. c3 {[%clk 0:02:59]}  Nc6 {[%clk 0:03:02]} 7. Ne2 {[%clk 0:03:00]}  cxd4 {[%clk 0:03:02]} 8. cxd4 {[%clk 0:03:01]}  f6 {[%clk 0:03:01]} 9. exf6 {[%clk 0:03:01]}  Nxf6 {[%clk 0:03:02]} 10. Nf3 {[%clk 0:03:01]}  Bd6 {[%clk 0:03:03]} 11. O-O {[%clk 0:03:02]}  Qc7 {[%clk 0:03:04]} 12. Bg5 {[%clk 0:03:02]}  O-O {[%clk 0:03:04]} 13. Bh4 {[%clk 0:03:03]}  Nh5 {[%clk 0:03:04]} 14. Qc2 {[%clk 0:02:55]}  h6 {[%clk 0:03:03]} 15. Bh7+ {[%clk 0:02:55]}  Kh8 {[%clk 0:03:03]} 16. Bg6 {[%clk 0:02:56]}  Rxf3 {[%clk 0:03:03]} 17. gxf3 {[%clk 0:02:55]}  Nf4 {[%clk 0:02:55]} 18. Nxf4 {[%clk 0:02:52]}  Bxf4 {[%clk 0:02:56]} 19. Bg3 {[%clk 0:02:53]}  Bd7 {[%clk 0:02:34]} 20. Kg2 {[%clk 0:02:49]}  Rf8 {[%clk 0:02:29]} 21. Rae1 {[%clk 0:02:39]}  Qb6 {[%clk 0:02:27]} 22. Qc5 {[%clk 0:02:29]}  Qd8 {[%clk 0:02:20]} 23. Bb1 {[%clk 0:02:03]}  Qf6 {[%clk 0:01:27]} 24. Qc2 {[%clk 0:01:43]}  g6 {[%clk 0:01:25]} 25. Qxg6 {[%clk 0:01:29]}  Qxg6 {[%clk 0:01:26]} 26. Bxg6 {[%clk 0:01:29]}  Nxd4 {[%clk 0:01:27]} 27. Bd3 {[%clk 0:01:18]}  Bg5 {[%clk 0:01:00]} 28. Bd6 {[%clk 0:00:58]}  Rf7 {[%clk 0:00:40]} 29. Bg6 {[%clk 0:00:49]}  Rxf3 {[%clk 0:00:24]} 30. Be5+ {[%clk 0:00:46]}  Bf6 {[%clk 0:00:24]} 31. Bxd4 {[%clk 0:00:43]}  Rf4 {[%clk 0:00:21]} 32. Bxf6+ {[%clk 0:00:42]}  Rxf6 {[%clk 0:00:22]} 33. Bd3 {[%clk 0:00:40]}  Kg7 {[%clk 0:00:13]} 34. f3 {[%clk 0:00:40]}  Kf7 {[%clk 0:00:12]} 35. Kf2 {[%clk 0:00:40]}  Rf4 {[%clk 0:00:08]} 36. Ke3 {[%clk 0:00:39]}  Rh4 {[%clk 0:00:08]} 37. Rg1 {[%clk 0:00:38]}  Rxh2 {[%clk 0:00:05]} 38. Rh1 {[%clk 0:00:35]}  Rxb2 {[%clk 0:00:05]} 39. Rxh6 {[%clk 0:00:35]}  Rxa2 {[%clk 0:00:02]} 40. Rg1 {[%clk 0:00:32]}  Ke7 {[%clk 0:00:02]} 41. f4 {[%clk 0:00:28]}  Kd6 {[%clk 0:00:02]} 42. f5 {[%clk 0:00:28]}  Ke5 {[%clk 0:00:01]} 43. fxe6 {[%clk 0:00:26]}  d4+ {[%clk 0:00:01]} 44. Kf3 {[%clk 0:00:26]}  Bc6+ {[%clk 0:00:02]} 45. Kg3 {[%clk 0:00:26]}  Ra3 {[%clk 0:00:00]} 46. Re1+ {[%clk 0:00:25]} 1-0


[Site "https://www.chess.com"]

[Event "Titled Tuesday Blitz October 31 Late 2023"]
[White "Skatchkov, Valery"]
[Black "Troff, Kayden"]
[WhiteFideId "24195812"]
[BlackFideId "2047896"]
[WhiteElo "2591"]
[BlackElo "2778"]
[Result "0-1"]
[Round "6"]
[TimeControl "180+1"]
[Date "2023.10.31"]
[WhiteClock "0:01:02"]
[BlackClock "0:00:13"]
[Board "38"]

1. d4 {[%clk 0:03:00]}  Nf6 {[%clk 0:02:59]} 2. c4 {[%clk 0:03:00]}  g6 {[%clk 0:03:00]} 3. Nc3 {[%clk 0:03:00]}  d5 {[%clk 0:03:00]} 4. Nf3 {[%clk 0:02:59]}  Bg7 {[%clk 0:03:00]} 5. Bg5 {[%clk 0:03:00]}  Ne4 {[%clk 0:03:00]} 6. Bf4 {[%clk 0:03:00]}  Nxc3 {[%clk 0:02:59]} 7. bxc3 {[%clk 0:03:01]}  O-O {[%clk 0:02:55]} 8. e3 {[%clk 0:03:00]}  c5 {[%clk 0:02:55]} 9. cxd5 {[%clk 0:03:00]}  Qxd5 {[%clk 0:02:55]} 10. Be2 {[%clk 0:03:01]}  cxd4 {[%clk 0:02:53]} 11. cxd4 {[%clk 0:03:01]}  Nc6 {[%clk 0:02:53]} 12. O-O {[%clk 0:03:01]}  Bf5 {[%clk 0:02:45]} 13. Qa4 {[%clk 0:03:00]}  Qa5 {[%clk 0:02:45]} 14. Qxa5 {[%clk 0:02:59]}  Nxa5 {[%clk 0:02:45]} 15. Rfc1 {[%clk 0:02:59]}  Rac8 {[%clk 0:02:41]} 16. Ne5 {[%clk 0:02:59]}  g5 {[%clk 0:02:00]} 17. Bg3 {[%clk 0:02:52]}  Bc2 {[%clk 0:01:53]} 18. Bg4 {[%clk 0:02:44]}  f5 {[%clk 0:01:49]} 19. Bf3 {[%clk 0:02:41]}  e6 {[%clk 0:01:43]} 20. Nd7 {[%clk 0:02:31]}  Rfd8 {[%clk 0:01:28]} 21. Nc5 {[%clk 0:02:30]}  Rxc5 {[%clk 0:01:26]} 22. dxc5 {[%clk 0:02:31]}  Rd2 {[%clk 0:01:16]} 23. Bc7 {[%clk 0:02:28]}  Nc6 {[%clk 0:01:00]} 24. Rab1 {[%clk 0:02:28]}  Bxb1 {[%clk 0:00:56]} 25. Rxb1 {[%clk 0:02:29]}  g4 {[%clk 0:00:56]} 26. Bd1 {[%clk 0:02:24]}  Kf7 {[%clk 0:00:49]} 27. Bb3 {[%clk 0:02:24]}  Bf8 {[%clk 0:00:46]} 28. Rc1 {[%clk 0:02:14]}  Rd7 {[%clk 0:00:42]} 29. Bf4 {[%clk 0:02:12]}  Kf6 {[%clk 0:00:42]} 30. h4 {[%clk 0:02:10]}  e5 {[%clk 0:00:41]} 31. Bg3 {[%clk 0:02:08]}  Bh6 {[%clk 0:00:37]} 32. Rc4 {[%clk 0:02:03]}  Na5 {[%clk 0:00:35]} 33. Ra4 {[%clk 0:02:03]}  Nxb3 {[%clk 0:00:32]} 34. axb3 {[%clk 0:02:04]}  a6 {[%clk 0:00:32]} 35. Rb4 {[%clk 0:02:03]}  Rc7 {[%clk 0:00:25]} 36. Rb6+ {[%clk 0:02:03]}  Rc6 {[%clk 0:00:26]} 37. Rxb7 {[%clk 0:02:03]}  f4 {[%clk 0:00:26]} 38. exf4 {[%clk 0:01:57]}  exf4 {[%clk 0:00:27]} 39. Rxh7 {[%clk 0:01:56]}  Kf5 {[%clk 0:00:24]} 40. Bh2 {[%clk 0:01:54]}  Rxc5 {[%clk 0:00:24]} 41. Kh1 {[%clk 0:01:53]}  Kg6 {[%clk 0:00:20]} 42. Rb7 {[%clk 0:01:51]}  g3 {[%clk 0:00:18]} 43. Bg1 {[%clk 0:01:48]}  Rc1 {[%clk 0:00:18]} 44. fxg3 {[%clk 0:01:21]}  fxg3 {[%clk 0:00:17]} 45. Re7 {[%clk 0:01:20]}  Bf8 {[%clk 0:00:14]} 46. Re6+ {[%clk 0:01:16]}  Kf7 {[%clk 0:00:13]} 47. Re5 {[%clk 0:01:11]}  Kf6 {[%clk 0:00:13]} 48. Ra5 {[%clk 0:01:10]}  Kf7 {[%clk 0:00:13]} 49. Rf5+ {[%clk 0:01:09]}  Kg8 {[%clk 0:00:13]} 50. Rg5+ {[%clk 0:01:09]}  Kf7 {[%clk 0:00:12]} 51. Rf5+ {[%clk 0:01:06]}  Ke8 {[%clk 0:00:13]} 52. Re5+ {[%clk 0:01:06]}  Kd7 {[%clk 0:00:13]} 53. Rf5 {[%clk 0:01:05]}  Bd6 {[%clk 0:00:13]} 54. h5 {[%clk 0:01:05]}  Ke6 {[%clk 0:00:13]} 55. Rg5 {[%clk 0:01:04]}  Bf4 {[%clk 0:00:12]} 56. Rg4 {[%clk 0:01:03]}  Kf5 {[%clk 0:00:12]} 57. Rg8 {[%clk 0:01:00]}  Be3 {[%clk 0:00:12]} 58. Rxg3 {[%clk 0:01:01]}  Rxg1+ {[%clk 0:00:12]} 59. Kh2 {[%clk 0:01:01]}  Bf4 {[%clk 0:00:11]} 60. Kxg1 {[%clk 0:01:01]}  Bxg3 {[%clk 0:00:11]} 61. Kf1 {[%clk 0:01:01]}  Kg5 {[%clk 0:00:11]} 62. Ke2 {[%clk 0:01:01]}  Kxh5 {[%clk 0:00:12]} 63. Kd3 {[%clk 0:01:02]}  Bd6 {[%clk 0:00:12]} 64. Kc4 {[%clk 0:01:03]}  a5 {[%clk 0:00:12]} 65. Kd3 {[%clk 0:01:01]}  Kg4 {[%clk 0:00:12]} 66. Ke2 {[%clk 0:01:02]}  Kg3 {[%clk 0:00:13]} 67. Kf1 {[%clk 0:01:02]}  Bc5 {[%clk 0:00:13]} 0-1


[Site "https://www.chess.com"]

[Event "Titled Tuesday Blitz October 31 Late 2023"]
[White "Djokic, Mihailo"]
[Black "Kashefi, Amir Hosein"]
[WhiteFideId "976440"]
[BlackFideId "12557935"]
[WhiteElo "2732"]
[BlackElo "2589"]
[Result "1/2-1/2"]
[Round "6"]
[TimeControl "180+1"]
[Date "2023.10.31"]
[WhiteClock "0:00:25"]
[BlackClock "0:00:05"]
[Board "40"]

1. e4 {[%clk 0:03:00]}  c6 {[%clk 0:02:57]} 2. d4 {[%clk 0:02:52]}  d5 {[%clk 0:02:57]} 3. e5 {[%clk 0:02:53]}  Bf5 {[%clk 0:02:56]} 4. h4 {[%clk 0:02:53]}  h5 {[%clk 0:02:56]} 5. Bg5 {[%clk 0:02:53]}  Qb6 {[%clk 0:02:55]} 6. Bd3 {[%clk 0:02:52]}  Bxd3 {[%clk 0:02:53]} 7. Qxd3 {[%clk 0:02:53]}  e6 {[%clk 0:02:53]} 8. Nd2 {[%clk 0:02:53]}  Qa6 {[%clk 0:02:50]} 9. c4 {[%clk 0:02:53]}  Bb4 {[%clk 0:02:49]} 10. b3 {[%clk 0:02:51]}  Ne7 {[%clk 0:02:47]} 11. Ne2 {[%clk 0:02:49]}  Nd7 {[%clk 0:02:47]} 12. O-O {[%clk 0:02:48]}  Nf5 {[%clk 0:02:44]} 13. Ng3 {[%clk 0:02:47]}  g6 {[%clk 0:02:35]} 14. Nxf5 {[%clk 0:02:47]}  gxf5 {[%clk 0:02:35]} 15. Nf3 {[%clk 0:02:47]}  Be7 {[%clk 0:02:35]} 16. Qc3 {[%clk 0:02:41]}  Bxg5 {[%clk 0:02:34]} 17. Nxg5 {[%clk 0:02:40]}  Nf8 {[%clk 0:02:34]} 18. cxd5 {[%clk 0:02:35]}  cxd5 {[%clk 0:02:31]} 19. Qc7 {[%clk 0:02:35]}  Nd7 {[%clk 0:02:27]} 20. Rac1 {[%clk 0:02:31]}  Qb6 {[%clk 0:02:23]} 21. Nxf7 {[%clk 0:02:30]}  Qxc7 {[%clk 0:01:58]} 22. Rxc7 {[%clk 0:02:29]}  Kxf7 {[%clk 0:01:53]} 23. Rxd7+ {[%clk 0:02:29]}  Kg6 {[%clk 0:01:52]} 24. Rxb7 {[%clk 0:02:28]}  Rhc8 {[%clk 0:01:51]} 25. Re7 {[%clk 0:02:27]}  Rc6 {[%clk 0:01:51]} 26. Rd1 {[%clk 0:02:25]}  f4 {[%clk 0:01:51]} 27. Rd2 {[%clk 0:02:13]}  a5 {[%clk 0:01:50]} 28. Kh2 {[%clk 0:02:02]}  a4 {[%clk 0:01:46]} 29. g3 {[%clk 0:01:58]}  axb3 {[%clk 0:01:44]} 30. axb3 {[%clk 0:01:58]}  Ra3 {[%clk 0:01:44]} 31. Rd3 {[%clk 0:01:56]}  fxg3+ {[%clk 0:01:20]} 32. Rxg3+ {[%clk 0:01:53]}  Kf5 {[%clk 0:01:20]} 33. Re3 {[%clk 0:01:43]}  Ra2 {[%clk 0:00:52]} 34. Rf7+ {[%clk 0:01:42]}  Kg6 {[%clk 0:00:53]} 35. Rf6+ {[%clk 0:01:42]}  Kh7 {[%clk 0:00:53]} 36. Ref3 {[%clk 0:01:40]}  Rd2 {[%clk 0:00:46]} 37. R6f4 {[%clk 0:01:27]}  Rb6 {[%clk 0:00:45]} 38. Kg3 {[%clk 0:01:23]}  Rb4 {[%clk 0:00:44]} 39. Rf7+ {[%clk 0:01:22]}  Kg8 {[%clk 0:00:44]} 40. Rf8+ {[%clk 0:01:23]}  Kg7 {[%clk 0:00:44]} 41. R3f7+ {[%clk 0:01:23]}  Kg6 {[%clk 0:00:44]} 42. Rf6+ {[%clk 0:01:20]}  Kg7 {[%clk 0:00:44]} 43. Rc8 {[%clk 0:01:11]}  Rd3+ {[%clk 0:00:42]} 44. f3 {[%clk 0:01:10]}  Rbxd4 {[%clk 0:00:39]} 45. Rc7+ {[%clk 0:01:11]}  Kg8 {[%clk 0:00:37]} 46. Rxe6 {[%clk 0:01:10]}  Rg4+ {[%clk 0:00:28]} 47. Kf2 {[%clk 0:01:10]}  Rf4 {[%clk 0:00:27]} 48. Re8+ {[%clk 0:01:04]}  Rf8 {[%clk 0:00:27]} 49. Rxf8+ {[%clk 0:01:02]}  Kxf8 {[%clk 0:00:27]} 50. Rh7 {[%clk 0:00:53]}  Rxb3 {[%clk 0:00:23]} 51. Rxh5 {[%clk 0:00:54]}  Kf7 {[%clk 0:00:23]} 52. Rh6 {[%clk 0:00:53]}  d4 {[%clk 0:00:20]} 53. Rd6 {[%clk 0:00:54]}  Re3 {[%clk 0:00:20]} 54. f4 {[%clk 0:00:52]}  Rd3 {[%clk 0:00:20]} 55. h5 {[%clk 0:00:51]}  Ke7 {[%clk 0:00:18]} 56. h6 {[%clk 0:00:50]}  Kf7 {[%clk 0:00:17]} 57. Kg2 {[%clk 0:00:51]}  Kg8 {[%clk 0:00:16]} 58. Rd7 {[%clk 0:00:50]}  Kh8 {[%clk 0:00:10]} 59. Kf2 {[%clk 0:00:50]}  Kg8 {[%clk 0:00:06]} 60. f5 {[%clk 0:00:46]}  Re3 {[%clk 0:00:06]} 61. e6 {[%clk 0:00:47]}  Re5 {[%clk 0:00:06]} 62. Rf7 {[%clk 0:00:38]}  d3 {[%clk 0:00:05]} 63. h7+ {[%clk 0:00:36]}  Kh8 {[%clk 0:00:05]} 64. e7 {[%clk 0:00:36]}  d2 {[%clk 0:00:05]} 65. e8=Q+ {[%clk 0:00:23]}  Rxe8 {[%clk 0:00:04]} 66. Rd7 {[%clk 0:00:24]}  Rf8 {[%clk 0:00:02]} 67. Ke3 {[%clk 0:00:20]}  Rxf5 {[%clk 0:00:02]} 68. Ke4 {[%clk 0:00:19]}  Rh5 {[%clk 0:00:03]} 69. Rxd2 {[%clk 0:00:18]}  Rxh7 {[%clk 0:00:03]} 70. Kf5 {[%clk 0:00:18]}  Rf7+ {[%clk 0:00:03]} 71. Kg6 {[%clk 0:00:19]}  Kg8 {[%clk 0:00:02]} 72. Rd8+ {[%clk 0:00:18]}  Rf8 {[%clk 0:00:03]} 73. Rd7 {[%clk 0:00:19]}  Ra8 {[%clk 0:00:03]} 74. Rd6 {[%clk 0:00:18]}  Kh8 {[%clk 0:00:03]} 75. Kf6 {[%clk 0:00:17]}  Kg8 {[%clk 0:00:04]} 76. Rd5 {[%clk 0:00:17]}  Kh8 {[%clk 0:00:04]} 77. Kf7 {[%clk 0:00:17]}  Ra7+ {[%clk 0:00:04]} 78. Ke8 {[%clk 0:00:17]}  Ra8+ {[%clk 0:00:05]} 79. Kd7 {[%clk 0:00:18]}  Ra7+ {[%clk 0:00:04]} 80. Ke6 {[%clk 0:00:18]}  Ra8 {[%clk 0:00:03]} 81. Rg5 {[%clk 0:00:17]}  Kh7 {[%clk 0:00:04]} 82. Rg2 {[%clk 0:00:17]}  Kh6 {[%clk 0:00:04]} 83. Kf7 {[%clk 0:00:17]}  Ra7+ {[%clk 0:00:04]} 84. Ke6 {[%clk 0:00:17]}  Ra6+ {[%clk 0:00:04]} 85. Kd7 {[%clk 0:00:18]}  Ra7+ {[%clk 0:00:05]} 86. Kc6 {[%clk 0:00:18]}  Rg7 {[%clk 0:00:05]} 87. Rh2+ {[%clk 0:00:18]}  Kg6 {[%clk 0:00:06]} 88. Kd5 {[%clk 0:00:19]}  Kf7 {[%clk 0:00:06]} 89. Kd6 {[%clk 0:00:19]}  Kf6 {[%clk 0:00:05]} 90. Rf2+ {[%clk 0:00:19]}  Kg6 {[%clk 0:00:06]} 91. Ke6 {[%clk 0:00:20]}  Ra7 {[%clk 0:00:06]} 92. Rg2+ {[%clk 0:00:20]}  Kh7 {[%clk 0:00:06]} 93. Kf6 {[%clk 0:00:20]}  Kh8 {[%clk 0:00:05]} 94. Rh2+ {[%clk 0:00:20]}  Kg8 {[%clk 0:00:05]} 95. Rb2 {[%clk 0:00:20]}  Ra6+ {[%clk 0:00:04]} 96. Ke7 {[%clk 0:00:21]}  Ra7+ {[%clk 0:00:05]} 97. Ke6 {[%clk 0:00:22]}  Rg7 {[%clk 0:00:05]} 98. Kf6 {[%clk 0:00:22]}  Rf7+ {[%clk 0:00:05]} 99. Kg6 {[%clk 0:00:22]}  Rg7+ {[%clk 0:00:05]} 100. Kh6 {[%clk 0:00:23]}  Rh7+ {[%clk 0:00:05]} 101. Kg5 {[%clk 0:00:24]}  Rg7+ {[%clk 0:00:06]} 102. Kf4 {[%clk 0:00:24]}  Rf7+ {[%clk 0:00:06]} 103. Ke5 {[%clk 0:00:25]}  Re7+ {[%clk 0:00:06]} 104. Kd6 {[%clk 0:00:26]}  Re3 {[%clk 0:00:06]} 105. Rb4 {[%clk 0:00:26]}  Kf7 {[%clk 0:00:07]} 106. Kd5 {[%clk 0:00:26]}  Ke7 {[%clk 0:00:07]} 107. Rf4 {[%clk 0:00:26]}  Re6 {[%clk 0:00:06]} 108. Rh4 {[%clk 0:00:26]}  Rd6+ {[%clk 0:00:07]} 109. Ke5 {[%clk 0:00:26]}  Ra6 {[%clk 0:00:07]} 110. Rh7+ {[%clk 0:00:26]}  Kf8 {[%clk 0:00:07]} 111. Rb7 {[%clk 0:00:26]}  Ke8 {[%clk 0:00:07]} 112. Rb5 {[%clk 0:00:26]}  Rh6 {[%clk 0:00:07]} 113. Kd4 {[%clk 0:00:26]}  Kd7 {[%clk 0:00:07]} 114. Re5 {[%clk 0:00:26]}  Kc6 {[%clk 0:00:06]} 115. Ke4 {[%clk 0:00:25]}  Rf6 {[%clk 0:00:05]} 116. Rg5 {[%clk 0:00:24]}  Kd6 {[%clk 0:00:05]} 117. Rf5 {[%clk 0:00:24]}  Rg6 {[%clk 0:00:05]} 118. Kf4 {[%clk 0:00:25]}  Re6 {[%clk 0:00:05]} 119. Ra5 {[%clk 0:00:25]}  Ke7 {[%clk 0:00:05]} 1/2-1/2


[Site "https://www.chess.com"]